[Event "Titled Tuesday Blitz January 31 Early 2023"]
[White "Ilkhomi, Jaloliddin"]
[Black "Aradhya, Garg"]
[WhiteFideId "14700948"]
[BlackFideId "25006746"]
[WhiteElo "1997"]
[BlackElo "2284"]
[Result "1/2-1/2"]
[Round "06"]
[TimeControl "180+2"]
[Date "2023.01.31"]
[WhiteClock "0:00:10"]
[BlackClock "0:00:11"]

1. d4 {[%clk 0:03:00]}  d5 {[%clk 0:02:59]} 2. Bf4 {[%clk 0:02:59]}  Nf6 {[%clk 0:02:56]} 3. e3 {[%clk 0:03:00]}  c5 {[%clk 0:02:56]} 4. c3 {[%clk 0:02:59]}  Nc6 {[%clk 0:02:56]} 5. Nd2 {[%clk 0:02:58]}  Qb6 {[%clk 0:02:54]} 6. Qb3 {[%clk 0:02:57]}  g6 {[%clk 0:02:52]} 7. Ngf3 {[%clk 0:02:52]}  c4 {[%clk 0:02:52]} 8. Qc2 {[%clk 0:02:53]}  Bf5 {[%clk 0:02:51]} 9. Qc1 {[%clk 0:02:54]}  Bg7 {[%clk 0:02:48]} 10. Be2 {[%clk 0:02:54]}  O-O {[%clk 0:02:43]} 11. O-O {[%clk 0:02:55]}  Qd8 {[%clk 0:02:43]} 12. Bd1 {[%clk 0:02:54]}  b5 {[%clk 0:02:43]} 13. Bc2 {[%clk 0:02:48]}  Bxc2 {[%clk 0:02:26]} 14. Qxc2 {[%clk 0:02:47]}  a5 {[%clk 0:02:25]} 15. b3 {[%clk 0:02:43]}  Rc8 {[%clk 0:02:16]} 16. Qb2 {[%clk 0:02:43]}  Nh5 {[%clk 0:02:12]} 17. Ne5 {[%clk 0:02:35]}  Nxf4 {[%clk 0:02:11]} 18. exf4 {[%clk 0:02:36]}  e6 {[%clk 0:02:02]} 19. bxc4 {[%clk 0:02:26]}  bxc4 {[%clk 0:01:59]} 20. Nxc6 {[%clk 0:02:27]}  Rxc6 {[%clk 0:02:00]} 21. Rab1 {[%clk 0:02:24]}  Qc7 {[%clk 0:01:45]} 22. Qb7 {[%clk 0:02:24]}  Rc8 {[%clk 0:01:41]} 23. Qxc7 {[%clk 0:02:22]}  R8xc7 {[%clk 0:01:41]} 24. a4 {[%clk 0:02:15]}  h6 {[%clk 0:01:37]} 25. Rb5 {[%clk 0:02:15]}  g5 {[%clk 0:01:33]} 26. fxg5 {[%clk 0:02:09]}  hxg5 {[%clk 0:01:33]} 27. Rfb1 {[%clk 0:02:07]}  Ra7 {[%clk 0:01:13]} 28. h4 {[%clk 0:01:50]}  gxh4 {[%clk 0:01:11]} 29. Nf3 {[%clk 0:01:51]}  Bf6 {[%clk 0:01:11]} 30. Rb8+ {[%clk 0:01:50]}  Kg7 {[%clk 0:01:10]} 31. Kf1 {[%clk 0:01:33]}  Rcc7 {[%clk 0:00:56]} 32. Ke2 {[%clk 0:01:32]}  Re7 {[%clk 0:00:56]} 33. g3 {[%clk 0:01:33]}  e5 {[%clk 0:00:52]} 34. dxe5 {[%clk 0:01:27]}  Bxe5 {[%clk 0:00:53]} 35. Nxe5 {[%clk 0:01:26]}  Rxe5+ {[%clk 0:00:54]} 36. Kf3 {[%clk 0:01:26]}  Rf5+ {[%clk 0:00:53]} 37. Kg2 {[%clk 0:01:24]}  h3+ {[%clk 0:00:53]} 38. Kxh3 {[%clk 0:01:05]}  Rxf2 {[%clk 0:00:52]} 39. R8b5 {[%clk 0:01:06]}  Rd7 {[%clk 0:00:40]} 40. Rd1 {[%clk 0:01:04]}  d4 {[%clk 0:00:36]} 41. Rxd4 {[%clk 0:00:51]}  Rxd4 {[%clk 0:00:35]} 42. cxd4 {[%clk 0:00:51]}  Rd2 {[%clk 0:00:29]} 43. d5 {[%clk 0:00:51]}  Kf6 {[%clk 0:00:25]} 44. Rxa5 {[%clk 0:00:40]}  Ke5 {[%clk 0:00:25]} 45. Rc5 {[%clk 0:00:41]}  Kd4 {[%clk 0:00:23]} 46. Rc8 {[%clk 0:00:42]}  Kc3 {[%clk 0:00:19]} 47. Rd8 {[%clk 0:00:31]}  Kb4 {[%clk 0:00:16]} 48. d6 {[%clk 0:00:31]}  c3 {[%clk 0:00:15]} 49. d7 {[%clk 0:00:27]}  Ka3 {[%clk 0:00:16]} 50. Rc8 {[%clk 0:00:27]}  Rxd7 {[%clk 0:00:15]} 51. Rxc3+ {[%clk 0:00:28]}  Kxa4 {[%clk 0:00:16]} 52. Kg4 {[%clk 0:00:28]}  Kb4 {[%clk 0:00:16]} 53. Rc8 {[%clk 0:00:29]}  Kb5 {[%clk 0:00:16]} 54. Kf5 {[%clk 0:00:29]}  Rd3 {[%clk 0:00:16]} 55. g4 {[%clk 0:00:29]}  Rf3+ {[%clk 0:00:16]} 56. Ke5 {[%clk 0:00:29]}  Rf1 {[%clk 0:00:17]} 57. Rc2 {[%clk 0:00:23]}  f6+ {[%clk 0:00:15]} 58. Ke4 {[%clk 0:00:17]}  Re1+ {[%clk 0:00:12]} 59. Kf5 {[%clk 0:00:17]}  Rf1+ {[%clk 0:00:13]} 60. Kg6 {[%clk 0:00:14]}  Rf4 {[%clk 0:00:13]} 61. Kh5 {[%clk 0:00:15]}  Kb6 {[%clk 0:00:13]} 62. Rc3 {[%clk 0:00:14]}  Kb5 {[%clk 0:00:13]} 63. Rg3 {[%clk 0:00:14]}  Kc5 {[%clk 0:00:13]} 64. Rd3 {[%clk 0:00:13]}  Kc4 {[%clk 0:00:12]} 65. Rd8 {[%clk 0:00:14]}  Kc5 {[%clk 0:00:13]} 66. Rd1 {[%clk 0:00:12]}  Kc4 {[%clk 0:00:13]} 67. Kg6 {[%clk 0:00:12]}  Rxg4+ {[%clk 0:00:10]} 68. Kxf6 {[%clk 0:00:13]}  Rf4+ {[%clk 0:00:11]} 69. Ke5 {[%clk 0:00:10]} 1/2-1/2


[Site "https://www.chess.com"]

[Event "Titled Tuesday Blitz January 31 Early 2023"]
[White "Nigmatov, Ortik"]
[Black "Roux, Baptiste"]
[WhiteFideId "14202131"]
[BlackFideId "36017450"]
[WhiteElo "2438"]
[BlackElo "2300"]
[Result "0-1"]
[Round "06"]
[TimeControl "180+2"]
[Date "2023.01.31"]
[WhiteClock "0:00:50"]
[BlackClock "0:00:39"]

1. e4 {[%clk 0:03:00]}  c5 {[%clk 0:02:55]} 2. Nf3 {[%clk 0:02:59]}  e6 {[%clk 0:02:56]} 3. d4 {[%clk 0:02:59]}  cxd4 {[%clk 0:02:56]} 4. Nxd4 {[%clk 0:03:00]}  Nf6 {[%clk 0:02:57]} 5. Nc3 {[%clk 0:03:00]}  Nc6 {[%clk 0:02:57]} 6. Ndb5 {[%clk 0:02:58]}  Bb4 {[%clk 0:02:54]} 7. a3 {[%clk 0:02:51]}  Bxc3+ {[%clk 0:02:54]} 8. Nxc3 {[%clk 0:02:51]}  d5 {[%clk 0:02:54]} 9. exd5 {[%clk 0:02:51]}  exd5 {[%clk 0:02:55]} 10. Bd3 {[%clk 0:02:51]}  O-O {[%clk 0:02:56]} 11. O-O {[%clk 0:02:51]}  d4 {[%clk 0:02:57]} 12. Ne2 {[%clk 0:02:50]}  Re8 {[%clk 0:02:49]} 13. Bg5 {[%clk 0:02:49]}  h6 {[%clk 0:02:48]} 14. Bh4 {[%clk 0:02:49]}  Qd6 {[%clk 0:02:47]} 15. Bg3 {[%clk 0:02:39]}  Qc5 {[%clk 0:02:38]} 16. b4 {[%clk 0:02:38]}  Qb6 {[%clk 0:02:32]} 17. b5 {[%clk 0:02:39]}  Ne5 {[%clk 0:02:24]} 18. Nxd4 {[%clk 0:02:39]}  Bg4 {[%clk 0:02:14]} 19. Qd2 {[%clk 0:02:26]}  Nxd3 {[%clk 0:02:06]} 20. Qxd3 {[%clk 0:02:25]}  Rad8 {[%clk 0:02:06]} 21. c3 {[%clk 0:01:58]}  Be2 {[%clk 0:02:07]} 22. Qf5 {[%clk 0:01:57]}  Bxf1 {[%clk 0:02:06]} 23. Rxf1 {[%clk 0:01:58]}  Ne4 {[%clk 0:02:01]} 24. Bh4 {[%clk 0:01:49]}  Rc8 {[%clk 0:01:45]} 25. Ne2 {[%clk 0:01:20]}  Nxc3 {[%clk 0:01:24]} 26. Nf4 {[%clk 0:01:19]}  Rc5 {[%clk 0:01:18]} 27. Qd7 {[%clk 0:01:17]}  Ne2+ {[%clk 0:01:02]} 28. Nxe2 {[%clk 0:00:55]}  Rxe2 {[%clk 0:01:01]} 29. a4 {[%clk 0:00:55]}  Qc7 {[%clk 0:00:52]} 30. Qd4 {[%clk 0:00:51]}  Rc4 {[%clk 0:00:47]} 31. Qd3 {[%clk 0:00:51]}  Rxh4 {[%clk 0:00:39]} 32. Qxe2 {[%clk 0:00:50]}  Qxh2# {[%clk 0:00:39]} 0-1


[Site "https://www.chess.com"]

[Event "Titled Tuesday Blitz January 31 Early 2023"]
[White "Lotfizadeh, Mehdi"]
[Black "Starozhilov, Leonid"]
[WhiteFideId "42513618"]
[BlackFideId "14106752"]
[WhiteElo "1529"]
[BlackElo "2313"]
[Result "1-0"]
[Round "06"]
[TimeControl "180+2"]
[Date "2023.01.31"]
[WhiteClock "0:00:05"]
[BlackClock "0:00:13"]

1. Nf3 {[%clk 0:03:00]}  Nf6 {[%clk 0:02:59]} 2. c4 {[%clk 0:02:59]}  g6 {[%clk 0:02:59]} 3. Nc3 {[%clk 0:02:58]}  Bg7 {[%clk 0:03:00]} 4. e4 {[%clk 0:02:58]}  d6 {[%clk 0:03:01]} 5. d4 {[%clk 0:02:58]}  Bg4 {[%clk 0:03:01]} 6. Be2 {[%clk 0:02:57]}  O-O {[%clk 0:03:01]} 7. Be3 {[%clk 0:02:56]}  a6 {[%clk 0:03:01]} 8. O-O {[%clk 0:02:52]}  Nfd7 {[%clk 0:03:01]} 9. a4 {[%clk 0:02:48]}  Nc6 {[%clk 0:02:58]} 10. d5 {[%clk 0:02:47]}  Bxf3 {[%clk 0:02:55]} 11. Bxf3 {[%clk 0:02:46]}  Nb4 {[%clk 0:02:54]} 12. a5 {[%clk 0:02:43]}  c5 {[%clk 0:02:47]} 13. Be2 {[%clk 0:02:17]}  Rb8 {[%clk 0:02:45]} 14. Qd2 {[%clk 0:02:13]}  Re8 {[%clk 0:02:43]} 15. f4 {[%clk 0:02:05]}  b6 {[%clk 0:02:41]} 16. axb6 {[%clk 0:02:01]}  Rxb6 {[%clk 0:02:41]} 17. e5 {[%clk 0:02:01]}  dxe5 {[%clk 0:02:41]} 18. f5 {[%clk 0:02:00]}  Qc7 {[%clk 0:02:30]} 19. Ne4 {[%clk 0:01:50]}  Reb8 {[%clk 0:02:02]} 20. Bh6 {[%clk 0:01:42]}  Nf6 {[%clk 0:02:01]} 21. Bxg7 {[%clk 0:01:14]}  Kxg7 {[%clk 0:01:57]} 22. Ng5 {[%clk 0:01:02]}  a5 {[%clk 0:01:20]} 23. b3 {[%clk 0:00:47]}  Na6 {[%clk 0:01:10]} 24. Bd1 {[%clk 0:00:47]}  Rxb3 {[%clk 0:00:57]} 25. Bxb3 {[%clk 0:00:46]}  Rxb3 {[%clk 0:00:57]} 26. fxg6 {[%clk 0:00:40]}  hxg6 {[%clk 0:00:57]} 27. Qxa5 {[%clk 0:00:39]}  Qxa5 {[%clk 0:00:50]} 28. Rxa5 {[%clk 0:00:39]}  Nb4 {[%clk 0:00:50]} 29. Rxc5 {[%clk 0:00:39]}  Nd3 {[%clk 0:00:50]} 30. Rc7 {[%clk 0:00:38]}  Nf4 {[%clk 0:00:33]} 31. Rxe7 {[%clk 0:00:34]}  Ng4 {[%clk 0:00:33]} 32. g3 {[%clk 0:00:22]}  Ne2+ {[%clk 0:00:27]} 33. Kh1 {[%clk 0:00:21]}  Ne3 {[%clk 0:00:21]} 34. Re1 {[%clk 0:00:13]}  Rb2 {[%clk 0:00:19]} 35. Rxf7+ {[%clk 0:00:13]}  Kh6 {[%clk 0:00:19]} 36. Ne4 {[%clk 0:00:12]}  Ng4 {[%clk 0:00:16]} 37. d6 {[%clk 0:00:10]}  Nd4 {[%clk 0:00:14]} 38. d7 {[%clk 0:00:08]}  Rxh2+ {[%clk 0:00:11]} 39. Kg1 {[%clk 0:00:08]}  Rd2 {[%clk 0:00:08]} 40. Nxd2 {[%clk 0:00:07]}  Nc6 {[%clk 0:00:08]} 41. Ne4 {[%clk 0:00:06]}  Nd8 {[%clk 0:00:08]} 42. Re7 {[%clk 0:00:06]}  Ne6 {[%clk 0:00:09]} 43. Rxe6 {[%clk 0:00:06]}  Kh5 {[%clk 0:00:09]} 44. Kg2 {[%clk 0:00:05]}  Nf6 {[%clk 0:00:10]} 45. Rh1+ {[%clk 0:00:05]}  Kg4 {[%clk 0:00:11]} 46. Nxf6+ {[%clk 0:00:05]}  Kf5 {[%clk 0:00:12]} 47. d8=Q {[%clk 0:00:05]}  e4 {[%clk 0:00:13]} 48. Qd5# {[%clk 0:00:05]} 1-0


[Site "https://www.chess.com"]

[Event "Titled Tuesday Blitz January 31 Early 2023"]
[White "Mirzoev, Azer"]
[Black "Rodriguez, Santiago"]
[WhiteFideId "13400304"]
[BlackFideId "3000591"]
[WhiteElo "2416"]
[BlackElo "2252"]
[Result "1-0"]
[Round "06"]
[TimeControl "180+2"]
[Date "2023.01.31"]
[WhiteClock "0:01:17"]
[BlackClock "0:00:14"]

1. c4 {[%clk 0:03:00]}  e5 {[%clk 0:02:59]} 2. Nc3 {[%clk 0:03:00]}  Nc6 {[%clk 0:02:59]} 3. e3 {[%clk 0:02:59]}  Bb4 {[%clk 0:02:57]} 4. Nge2 {[%clk 0:02:59]}  d6 {[%clk 0:02:53]} 5. a3 {[%clk 0:02:59]}  Bxc3 {[%clk 0:02:50]} 6. Nxc3 {[%clk 0:03:00]}  f5 {[%clk 0:02:49]} 7. d4 {[%clk 0:02:59]}  Nf6 {[%clk 0:02:48]} 8. Be2 {[%clk 0:02:58]}  O-O {[%clk 0:02:48]} 9. O-O {[%clk 0:02:58]}  Qe8 {[%clk 0:02:42]} 10. d5 {[%clk 0:02:56]}  Nd8 {[%clk 0:02:41]} 11. f4 {[%clk 0:02:51]}  Nf7 {[%clk 0:02:38]} 12. Bd3 {[%clk 0:02:44]}  exf4 {[%clk 0:02:04]} 13. exf4 {[%clk 0:02:44]}  Nh6 {[%clk 0:01:52]} 14. h3 {[%clk 0:02:42]}  a6 {[%clk 0:01:52]} 15. Re1 {[%clk 0:02:32]}  Qg6 {[%clk 0:01:49]} 16. Bd2 {[%clk 0:02:23]}  Bd7 {[%clk 0:01:49]} 17. Qf3 {[%clk 0:02:22]}  Rae8 {[%clk 0:01:48]} 18. b4 {[%clk 0:02:21]}  Rxe1+ {[%clk 0:01:34]} 19. Rxe1 {[%clk 0:02:20]}  Re8 {[%clk 0:01:35]} 20. Rxe8+ {[%clk 0:02:19]}  Qxe8 {[%clk 0:01:36]} 21. Qe3 {[%clk 0:02:16]}  Qxe3+ {[%clk 0:01:19]} 22. Bxe3 {[%clk 0:02:16]}  Kf7 {[%clk 0:01:17]} 23. a4 {[%clk 0:02:16]}  Nhg8 {[%clk 0:01:11]} 24. a5 {[%clk 0:02:12]}  Ne7 {[%clk 0:01:04]} 25. Kf2 {[%clk 0:02:12]}  g6 {[%clk 0:00:55]} 26. Ne2 {[%clk 0:02:03]}  h5 {[%clk 0:00:40]} 27. Bd4 {[%clk 0:02:01]}  Ne4+ {[%clk 0:00:39]} 28. Ke3 {[%clk 0:01:57]}  c5 {[%clk 0:00:35]} 29. bxc5 {[%clk 0:01:48]}  Nxc5 {[%clk 0:00:33]} 30. Bxc5 {[%clk 0:01:48]}  dxc5 {[%clk 0:00:34]} 31. Ng1 {[%clk 0:01:49]}  Nc8 {[%clk 0:00:30]} 32. Nf3 {[%clk 0:01:49]}  Ke7 {[%clk 0:00:23]} 33. Ne5 {[%clk 0:01:46]}  Be8 {[%clk 0:00:23]} 34. Kf3 {[%clk 0:01:38]}  Nd6 {[%clk 0:00:23]} 35. g4 {[%clk 0:01:37]}  fxg4+ {[%clk 0:00:22]} 36. hxg4 {[%clk 0:01:38]}  hxg4+ {[%clk 0:00:22]} 37. Kxg4 {[%clk 0:01:39]}  Kf6 {[%clk 0:00:22]} 38. Kg3 {[%clk 0:01:30]}  g5 {[%clk 0:00:22]} 39. Ng4+ {[%clk 0:01:30]}  Kg7 {[%clk 0:00:20]} 40. fxg5 {[%clk 0:01:28]}  Bg6 {[%clk 0:00:20]} 41. Bf1 {[%clk 0:01:24]}  Bc2 {[%clk 0:00:19]} 42. Kf4 {[%clk 0:01:21]}  Bb3 {[%clk 0:00:18]} 43. Ne5 {[%clk 0:01:21]}  Nf7 {[%clk 0:00:14]} 44. Nxf7 {[%clk 0:01:17]}  Kxf7 {[%clk 0:00:15]} 45. Bd3 {[%clk 0:01:17]}  Ba4 {[%clk 0:00:14]} 46. Ke5 {[%clk 0:01:17]} 1-0


[Site "https://www.chess.com"]

[Event "Titled Tuesday Blitz January 31 Early 2023"]
[White "Kielinkei"]
[Black "Dehtiarov, Roman"]
[BlackFideId "14186640"]
[WhiteElo "2440"]
[BlackElo "2289"]
[Result "0-1"]
[Round "06"]
[TimeControl "180+2"]
[Date "2023.01.31"]
[WhiteClock "0:00:01"]
[BlackClock "0:00:06"]

1. Nf3 {[%clk 0:03:00]}  Nf6 {[%clk 0:02:59]} 2. c4 {[%clk 0:02:59]}  c5 {[%clk 0:02:59]} 3. g3 {[%clk 0:02:59]}  Nc6 {[%clk 0:02:58]} 4. Bg2 {[%clk 0:02:59]}  e5 {[%clk 0:02:59]} 5. d3 {[%clk 0:02:55]}  d6 {[%clk 0:02:59]} 6. Nc3 {[%clk 0:02:54]}  g6 {[%clk 0:02:58]} 7. O-O {[%clk 0:02:53]}  Bg7 {[%clk 0:02:59]} 8. a3 {[%clk 0:02:53]}  O-O {[%clk 0:02:59]} 9. Rb1 {[%clk 0:02:53]}  a5 {[%clk 0:02:58]} 10. e3 {[%clk 0:02:39]}  h6 {[%clk 0:02:58]} 11. d4 {[%clk 0:02:31]}  cxd4 {[%clk 0:02:57]} 12. exd4 {[%clk 0:02:32]}  Bf5 {[%clk 0:02:56]} 13. Ra1 {[%clk 0:02:31]}  e4 {[%clk 0:02:54]} 14. Nh4 {[%clk 0:02:25]}  Re8 {[%clk 0:02:47]} 15. Nxf5 {[%clk 0:02:21]}  gxf5 {[%clk 0:02:48]} 16. Bf4 {[%clk 0:02:13]}  d5 {[%clk 0:02:43]} 17. Nb5 {[%clk 0:02:04]}  dxc4 {[%clk 0:02:33]} 18. Nd6 {[%clk 0:01:40]}  Re7 {[%clk 0:02:25]} 19. Nxf5 {[%clk 0:01:38]}  Rd7 {[%clk 0:02:15]} 20. Nxg7 {[%clk 0:01:30]}  Kxg7 {[%clk 0:02:15]} 21. Qe2 {[%clk 0:01:21]}  Nxd4 {[%clk 0:02:11]} 22. Qxc4 {[%clk 0:01:19]}  Rc8 {[%clk 0:02:09]} 23. Qa4 {[%clk 0:00:57]}  b5 {[%clk 0:02:05]} 24. Qd1 {[%clk 0:00:55]}  Nf3+ {[%clk 0:02:03]} 25. Bxf3 {[%clk 0:00:54]}  Rxd1 {[%clk 0:02:02]} 26. Raxd1 {[%clk 0:00:53]}  Qb6 {[%clk 0:01:48]} 27. Bg2 {[%clk 0:00:36]}  Rd8 {[%clk 0:01:46]} 28. Be5 {[%clk 0:00:30]}  Re8 {[%clk 0:01:37]} 29. Rd6 {[%clk 0:00:28]}  Qc5 {[%clk 0:01:13]} 30. Bxf6+ {[%clk 0:00:27]}  Kg8 {[%clk 0:01:12]} 31. Rfd1 {[%clk 0:00:23]}  e3 {[%clk 0:01:11]} 32. fxe3 {[%clk 0:00:17]}  Rxe3 {[%clk 0:00:51]} 33. Kh1 {[%clk 0:00:12]}  Kh7 {[%clk 0:00:38]} 34. Rd8 {[%clk 0:00:08]}  Qb6 {[%clk 0:00:21]} 35. Rh8+ {[%clk 0:00:04]}  Kg6 {[%clk 0:00:21]} 36. Bd4 {[%clk 0:00:05]}  Re1+ {[%clk 0:00:06]} 37. Rxe1 {[%clk 0:00:06]}  Qxd4 {[%clk 0:00:07]} 38. Rg8+ {[%clk 0:00:04]}  Kh7 {[%clk 0:00:07]} 39. Rge8 {[%clk 0:00:03]}  Qxb2 {[%clk 0:00:07]} 40. R8e3 {[%clk 0:00:02]}  a4 {[%clk 0:00:06]} 41. Be4+ {[%clk 0:00:02]}  Kg7 {[%clk 0:00:06]} 42. Bg2 {[%clk 0:00:02]}  b4 {[%clk 0:00:06]} 43. axb4 {[%clk 0:00:01]}  Qxb4 {[%clk 0:00:07]} 44. Re4 {[%clk 0:00:01]}  Qb3 {[%clk 0:00:06]} 45. R4e3 {[%clk 0:00:02]}  Qb2 {[%clk 0:00:06]} 46. Bd5 {[%clk 0:00:02]}  a3 {[%clk 0:00:06]} 47. Rf3 {[%clk 0:00:03]}  f6 {[%clk 0:00:06]} 48. Re7+ {[%clk 0:00:01]}  Kf8 {[%clk 0:00:06]} 49. Rf7+ {[%clk 0:00:01]}  Ke8 {[%clk 0:00:06]} 0-1


[Site "https://www.chess.com"]

[Event "Titled Tuesday Blitz January 31 Early 2023"]
[White "Leiva, Gianmarco"]
[Black "Gressmann, Moritz"]
[WhiteFideId "3804399"]
[BlackFideId "24695084"]
[WhiteElo "2392"]
[BlackElo "2129"]
[Result "1-0"]
[Round "06"]
[TimeControl "180+2"]
[Date "2023.01.31"]
[WhiteClock "0:00:03"]
[BlackClock "0:00:02"]

1. e4 {[%clk 0:03:00]}  e5 {[%clk 0:02:59]} 2. Nf3 {[%clk 0:02:58]}  Nf6 {[%clk 0:02:59]} 3. Nxe5 {[%clk 0:02:57]}  d6 {[%clk 0:02:59]} 4. Nf3 {[%clk 0:02:58]}  Nxe4 {[%clk 0:03:00]} 5. Nc3 {[%clk 0:02:58]}  Nxc3 {[%clk 0:02:59]} 6. dxc3 {[%clk 0:02:59]}  Be7 {[%clk 0:02:53]} 7. Be3 {[%clk 0:02:59]}  O-O {[%clk 0:02:53]} 8. Qd2 {[%clk 0:02:55]}  Bf6 {[%clk 0:02:52]} 9. h3 {[%clk 0:02:40]}  Nc6 {[%clk 0:02:39]} 10. g4 {[%clk 0:02:29]}  Ne5 {[%clk 0:02:39]} 11. Be2 {[%clk 0:02:25]}  Nxf3+ {[%clk 0:02:32]} 12. Bxf3 {[%clk 0:02:26]}  Be5 {[%clk 0:02:26]} 13. O-O-O {[%clk 0:02:16]}  c6 {[%clk 0:01:52]} 14. Be4 {[%clk 0:02:07]}  Qa5 {[%clk 0:01:43]} 15. a3 {[%clk 0:01:44]}  d5 {[%clk 0:01:23]} 16. Bd3 {[%clk 0:01:40]}  Bc7 {[%clk 0:00:49]} 17. g5 {[%clk 0:01:28]}  Bb6 {[%clk 0:00:48]} 18. h4 {[%clk 0:01:12]}  Rd8 {[%clk 0:00:28]} 19. h5 {[%clk 0:01:03]}  d4 {[%clk 0:00:19]} 20. cxd4 {[%clk 0:00:55]}  Bg4 {[%clk 0:00:17]} 21. Qxa5 {[%clk 0:00:48]}  Bxa5 {[%clk 0:00:17]} 22. Rdg1 {[%clk 0:00:47]}  Bf3 {[%clk 0:00:16]} 23. Rh3 {[%clk 0:00:44]}  Bd5 {[%clk 0:00:17]} 24. f4 {[%clk 0:00:28]}  Bb6 {[%clk 0:00:16]} 25. c3 {[%clk 0:00:26]}  Rac8 {[%clk 0:00:17]} 26. f5 {[%clk 0:00:20]}  c5 {[%clk 0:00:17]} 27. dxc5 {[%clk 0:00:20]}  Bxc5 {[%clk 0:00:17]} 28. Bxc5 {[%clk 0:00:20]}  Rxc5 {[%clk 0:00:17]} 29. Re3 {[%clk 0:00:17]}  Bc6 {[%clk 0:00:16]} 30. g6 {[%clk 0:00:16]}  hxg6 {[%clk 0:00:11]} 31. hxg6 {[%clk 0:00:15]}  fxg6 {[%clk 0:00:09]} 32. Rxg6 {[%clk 0:00:13]}  Be8 {[%clk 0:00:07]} 33. Rge6 {[%clk 0:00:10]}  Bf7 {[%clk 0:00:07]} 34. Re7 {[%clk 0:00:10]}  Rcd5 {[%clk 0:00:06]} 35. Bc2 {[%clk 0:00:10]}  R5d7 {[%clk 0:00:04]} 36. Rxd7 {[%clk 0:00:09]}  Rxd7 {[%clk 0:00:05]} 37. Re5 {[%clk 0:00:09]}  Kf8 {[%clk 0:00:05]} 38. b4 {[%clk 0:00:09]}  a6 {[%clk 0:00:05]} 39. Kb2 {[%clk 0:00:09]}  b5 {[%clk 0:00:06]} 40. a4 {[%clk 0:00:09]}  Bc4 {[%clk 0:00:06]} 41. axb5 {[%clk 0:00:09]}  axb5 {[%clk 0:00:07]} 42. Kc1 {[%clk 0:00:06]}  Re7 {[%clk 0:00:05]} 43. Rxe7 {[%clk 0:00:05]}  Kxe7 {[%clk 0:00:06]} 44. Kd2 {[%clk 0:00:06]}  Kf6 {[%clk 0:00:06]} 45. Ke3 {[%clk 0:00:06]}  Bd5 {[%clk 0:00:06]} 46. Kf4 {[%clk 0:00:06]}  Bc6 {[%clk 0:00:06]} 47. Be4 {[%clk 0:00:06]}  Bd7 {[%clk 0:00:06]} 48. Bd3 {[%clk 0:00:06]}  Bc6 {[%clk 0:00:06]} 49. c4 {[%clk 0:00:05]}  bxc4 {[%clk 0:00:06]} 50. Bxc4 {[%clk 0:00:06]}  Bb7 {[%clk 0:00:07]} 51. Bd3 {[%clk 0:00:06]}  Ke7 {[%clk 0:00:07]} 52. Ke5 {[%clk 0:00:05]}  Bc8 {[%clk 0:00:07]} 53. b5 {[%clk 0:00:04]}  Bb7 {[%clk 0:00:08]} 54. Be4 {[%clk 0:00:04]}  Bc8 {[%clk 0:00:03]} 55. Bd5 {[%clk 0:00:04]}  Kd8 {[%clk 0:00:02]} 56. Be6 {[%clk 0:00:02]}  Bb7 {[%clk 0:00:01]} 57. Kd6 {[%clk 0:00:02]}  Be4 {[%clk 0:00:01]} 58. b6 {[%clk 0:00:02]}  g6 {[%clk 0:00:01]} 59. f6 {[%clk 0:00:03]}  g5 {[%clk 0:00:01]} 60. f7 {[%clk 0:00:03]}  Bc6 {[%clk 0:00:01]} 61. f8=Q+ {[%clk 0:00:03]}  Be8 {[%clk 0:00:02]} 62. Qe7# {[%clk 0:00:03]} 1-0


[Site "https://www.chess.com"]

[Event "Titled Tuesday Blitz January 31 Early 2023"]
[White "Gureeva, Dina"]
[Black "Alex_Sahakyan2006"]
[WhiteFideId "4170695"]
[WhiteElo "2178"]
[BlackElo "2661"]
[Result "0-1"]
[Round "06"]
[TimeControl "180+2"]
[Date "2023.01.31"]
[WhiteClock "0:00:49"]
[BlackClock "0:00:53"]

1. d4 {[%clk 0:03:00]}  Nf6 {[%clk 0:02:57]} 2. c4 {[%clk 0:02:59]}  c5 {[%clk 0:02:56]} 3. dxc5 {[%clk 0:02:59]}  Na6 {[%clk 0:02:55]} 4. g3 {[%clk 0:02:59]}  Nxc5 {[%clk 0:02:55]} 5. Bg2 {[%clk 0:03:00]}  g6 {[%clk 0:02:56]} 6. Nf3 {[%clk 0:03:00]}  Bg7 {[%clk 0:02:56]} 7. O-O {[%clk 0:03:01]}  O-O {[%clk 0:02:56]} 8. Nc3 {[%clk 0:02:59]}  d6 {[%clk 0:02:56]} 9. a3 {[%clk 0:02:59]}  Be6 {[%clk 0:02:55]} 10. Nd2 {[%clk 0:02:55]}  a5 {[%clk 0:02:52]} 11. Qc2 {[%clk 0:02:53]}  a4 {[%clk 0:02:52]} 12. b4 {[%clk 0:02:33]}  axb3 {[%clk 0:02:50]} 13. Nxb3 {[%clk 0:02:33]}  Bxc4 {[%clk 0:02:47]} 14. Nxc5 {[%clk 0:02:33]}  dxc5 {[%clk 0:02:48]} 15. Bxb7 {[%clk 0:02:31]}  Ra7 {[%clk 0:02:48]} 16. Bf3 {[%clk 0:02:31]}  Qb6 {[%clk 0:02:30]} 17. Bd2 {[%clk 0:02:23]}  Qe6 {[%clk 0:02:28]} 18. Rfb1 {[%clk 0:02:18]}  Rd7 {[%clk 0:02:22]} 19. Be3 {[%clk 0:02:14]}  Nd5 {[%clk 0:02:10]} 20. Nxd5 {[%clk 0:02:09]}  Bxd5 {[%clk 0:02:11]} 21. Bxd5 {[%clk 0:02:09]}  Rxd5 {[%clk 0:02:10]} 22. Ra2 {[%clk 0:02:08]}  h5 {[%clk 0:02:08]} 23. h4 {[%clk 0:01:59]}  Be5 {[%clk 0:02:01]} 24. Kg2 {[%clk 0:01:57]}  Rfd8 {[%clk 0:01:59]} 25. Qc4 {[%clk 0:01:52]}  Qc6 {[%clk 0:01:58]} 26. Qe4 {[%clk 0:01:49]}  Qe6 {[%clk 0:01:55]} 27. Rc2 {[%clk 0:01:48]}  Qd6 {[%clk 0:01:49]} 28. Rbc1 {[%clk 0:01:48]}  Bd4 {[%clk 0:01:48]} 29. Bf4 {[%clk 0:01:45]}  Qa6 {[%clk 0:01:25]} 30. e3 {[%clk 0:01:43]}  Bf6 {[%clk 0:01:23]} 31. Rxc5 {[%clk 0:01:42]}  Rxc5 {[%clk 0:01:23]} 32. Rxc5 {[%clk 0:01:42]}  Rd1 {[%clk 0:01:23]} 33. Qc4 {[%clk 0:01:42]}  Qxa3 {[%clk 0:01:20]} 34. Rc8+ {[%clk 0:01:21]}  Kg7 {[%clk 0:01:20]} 35. Bg5 {[%clk 0:01:21]}  Bxg5 {[%clk 0:01:13]} 36. hxg5 {[%clk 0:01:21]}  Qd6 {[%clk 0:01:10]} 37. Qe4 {[%clk 0:01:16]}  Rd5 {[%clk 0:01:08]} 38. Re8 {[%clk 0:01:13]}  Re5 {[%clk 0:01:06]} 39. Qf4 {[%clk 0:01:07]}  Qc6+ {[%clk 0:00:57]} 40. Kg1 {[%clk 0:00:57]}  Rc5 {[%clk 0:00:52]} 41. Qd4+ {[%clk 0:00:49]}  e5 {[%clk 0:00:53]} 0-1


[Site "https://www.chess.com"]